[Event "*** Titled Tuesday Blitz"]
[Site "Chess.com"]
[Date "2021.04.06"]
[Round "9"]
[White "BvsN"]
[Black "mr_gustavo"]
[Result "1-0"]
[WhiteElo "2449"]
[BlackElo "2379"]
[TimeControl "180+1"]
[EndTime "11:47:36 PDT"]
[Termination "BvsN won by resignation"]

1. c4 {[%clk 0:03:00.9]} 1... Nf6 {[%clk 0:02:59.2]} 2. Nc3 {[%clk 0:03:01.1]}
2... g6 {[%clk 0:03:00.1]} 3. e4 {[%clk 0:03:01]} 3... d6 {[%clk 0:03:00.7]} 4.
d4 {[%clk 0:03:01.1]} 4... Bg7 {[%clk 0:03:01.3]} 5. Nge2 {[%clk 0:03:01.4]}
5... O-O {[%clk 0:03:01.5]} 6. f3 {[%clk 0:03:01.7]} 6... e5 {[%clk 0:03:01.7]}
7. dxe5 {[%clk 0:03:01.9]} 7... dxe5 {[%clk 0:03:01.7]} 8. Qxd8 {[%clk
0:03:02.8]} 8... Rxd8 {[%clk 0:03:02.5]} 9. Nd5 {[%clk 0:03:03.4]} 9... Ne8
{[%clk 0:02:58.9]} 10. Bg5 {[%clk 0:02:59.9]} 10... f6 {[%clk 0:02:58.8]} 11.
Be3 {[%clk 0:02:57.8]} 11... c6 {[%clk 0:02:58.3]} 12. Ne7+ {[%clk 0:02:55]}
12... Kf7 {[%clk 0:02:58]} 13. Nxc8 {[%clk 0:02:55.9]} 13... Rxc8 {[%clk
0:02:58.8]} 14. Nc3 {[%clk 0:02:54.5]} 14... Na6 {[%clk 0:02:54.9]} 15. a3
{[%clk 0:02:52.5]} 15... Nac7 {[%clk 0:02:53.9]} 16. Be2 {[%clk 0:02:51.1]}
16... Ne6 {[%clk 0:02:53]} 17. Rd1 {[%clk 0:02:47.1]} 17... Ke7 {[%clk
0:02:52.2]} 18. c5 {[%clk 0:02:39.1]} 18... Rd8 {[%clk 0:02:51.3]} 19. Kf2
{[%clk 0:02:38.7]} 19... Bf8 {[%clk 0:02:47.3]} 20. b4 {[%clk 0:02:32.5]} 20...
Kf7 {[%clk 0:02:37]} 21. Bc4 {[%clk 0:02:31.6]} 21... Ke7 {[%clk 0:02:35.4]} 22.
h4 {[%clk 0:02:05.6]} 22... h5 {[%clk 0:02:32.3]} 23. g3 {[%clk 0:02:03.6]}
23... N8c7 {[%clk 0:02:29.2]} 24. Nd5+ {[%clk 0:01:53.3]} 24... cxd5 {[%clk
0:02:19.8]} 25. exd5 {[%clk 0:01:53.3]} 25... Nd4 {[%clk 0:02:20.4]} 26. Bxd4
{[%clk 0:01:42.9]} 26... exd4 {[%clk 0:02:21.3]} 27. d6+ {[%clk 0:01:41]} 27...
Kd7 {[%clk 0:02:21.2]} 28. dxc7 {[%clk 0:01:39.6]} 28... Kxc7 {[%clk 0:02:22]}
29. Rhe1 {[%clk 0:01:32.6]} 29... a5 {[%clk 0:02:15.9]} 30. Rd3 {[%clk 0:01:17]}
30... axb4 {[%clk 0:02:15.6]} 31. axb4 {[%clk 0:01:16.5]} 31... Ra4 {[%clk
0:02:10.4]} 32. Rb1 {[%clk 0:01:06.8]} 32... Bh6 {[%clk 0:02:09.8]} 33. f4
{[%clk 0:00:59.8]} 33... g5 {[%clk 0:02:09.9]} 34. f5 {[%clk 0:00:51.8]} 34...
gxh4 {[%clk 0:02:09.7]} 35. gxh4 {[%clk 0:00:52.1]} 35... Be3+ {[%clk
0:02:10.3]} 36. Kf3 {[%clk 0:00:50.3]} 36... b6 {[%clk 0:02:00.3]} 37. Be6
{[%clk 0:00:46.8]} 37... bxc5 {[%clk 0:01:52]} 38. bxc5 {[%clk 0:00:45.5]} 38...
Ra5 {[%clk 0:01:52.6]} 39. Rbd1 {[%clk 0:00:28.9]} 39... Rxc5 {[%clk 0:01:43.5]}
40. Ra1 {[%clk 0:00:28.9]} 40... Rc2 {[%clk 0:01:40.1]} 41. Ke4 {[%clk
0:00:23.6]} 41... Rf2 {[%clk 0:01:38.6]} 42. Ra7+ {[%clk 0:00:17.3]} 42... Kb6
{[%clk 0:01:38.1]} 43. Rda3 {[%clk 0:00:15.8]} 43... Rb2 {[%clk 0:01:11.8]} 44.
R7a6+ {[%clk 0:00:13.7]} 44... Kc7 {[%clk 0:01:08.9]} 45. Ra7+ {[%clk
0:00:13.3]} 45... Rb7 {[%clk 0:01:08]} 46. R7a4 {[%clk 0:00:11.6]} 46... Rd6
{[%clk 0:00:58.5]} 47. Rc4+ {[%clk 0:00:11.6]} 47... Kd8 {[%clk 0:00:53]} 48.
Ra8+ {[%clk 0:00:11.3]} 48... Ke7 {[%clk 0:00:51]} 49. Rcc8 {[%clk 0:00:10.6]}
49... Rdb6 {[%clk 0:00:48.3]} 50. Re8+ {[%clk 0:00:10]} 50... Kd6 {[%clk
0:00:47.6]} 51. Rad8+ {[%clk 0:00:09.8]} 51... Kc5 {[%clk 0:00:47.5]} 52. Rc8+
{[%clk 0:00:06.3]} 52... Kb4 {[%clk 0:00:47.4]} 53. Rc4+ {[%clk 0:00:06.3]}
53... Ka3 {[%clk 0:00:46.1]} 54. Ra8+ {[%clk 0:00:05.8]} 54... Kb2 {[%clk
0:00:46.5]} 55. Rca4 {[%clk 0:00:04]} 55... Rb4 {[%clk 0:00:13.5]} 56. Ra2+
{[%clk 0:00:04]} 56... Kc1 {[%clk 0:00:13.8]} 57. Rc8+ {[%clk 0:00:04.4]} 57...
Kd1 {[%clk 0:00:12.4]} 58. Rh2 {[%clk 0:00:04.9]} 58... Rb1 {[%clk 0:00:07.2]}
59. Kd3 {[%clk 0:00:04.1]} 59... R7b3+ {[%clk 0:00:04.7]} 60. Bxb3+ {[%clk
0:00:04.4]} 60... Rxb3+ {[%clk 0:00:05.6]} 61. Ke4 {[%clk 0:00:04.9]} 61... Rb4
{[%clk 0:00:04.2]} 62. Rh1+ {[%clk 0:00:05]} 62... Kd2 {[%clk 0:00:04.1]} 63.
Rh2+ {[%clk 0:00:05.4]} 63... Kd1 {[%clk 0:00:04.6]} 64. Ra8 {[%clk 0:00:05.7]}
64... Bc1 {[%clk 0:00:01.7]} 65. Kd3 {[%clk 0:00:05.2]} 65... Rb3+ {[%clk
0:00:01.6]} 66. Kxd4 {[%clk 0:00:05.5]} 66... Rb4+ {[%clk 0:00:02]} 67. Kc3
{[%clk 0:00:05.4]} 67... Re4 {[%clk 0:00:01.4]} 68. Rd8+ {[%clk 0:00:04.6]}
68... Ke1 {[%clk 0:00:01.2]} 69. Rh1+ {[%clk 0:00:05.1]} 69... Kf2 {[%clk
0:00:01.8]} 70. Rxc1 {[%clk 0:00:05.4]} 70... Rxh4 {[%clk 0:00:02.4]} 71. Rc2+
{[%clk 0:00:05]} 71... Kf3 {[%clk 0:00:02.4]} 72. Rd3+ {[%clk 0:00:04.9]} 72...
Ke4 {[%clk 0:00:03]} 73. Rcd2 {[%clk 0:00:04.8]} 73... Rg4 {[%clk 0:00:02.1]}
74. Rd4+ {[%clk 0:00:05.1]} 74... Ke3 {[%clk 0:00:02.6]} 75. Rxg4 {[%clk
0:00:05.5]} 75... hxg4 {[%clk 0:00:03.5]} 76. Rg2 {[%clk 0:00:04.9]} 76... Kf3
{[%clk 0:00:03.9]} 77. Ra2 {[%clk 0:00:05.2]} 77... g3 {[%clk 0:00:04.3]} 78.
Kd4 {[%clk 0:00:05.6]} 78... g2 {[%clk 0:00:04.9]} 79. Rxg2 {[%clk 0:00:05.7]}
79... Kxg2 {[%clk 0:00:05.8]} 80. Kd5 {[%clk 0:00:06.1]} 80... Kf3 {[%clk
0:00:05.5]} 81. Ke6 {[%clk 0:00:07]} 81... Kf4 {[%clk 0:00:05.9]} 82. Kxf6
{[%clk 0:00:07.9]} 1-0

[Event "*** Titled Tuesday Blitz"]
[Site "Chess.com"]
[Date "2021.04.06"]
[Round "9"]
[White "Trankuilizer"]
[Black "TheMagicMaik"]
[Result "0-1"]
[WhiteElo "2563"]
[BlackElo "2430"]
[TimeControl "180+1"]
[EndTime "11:47:52 PDT"]
[Termination "TheMagicMaik won on time"]

1. e4 {[%clk 0:03:00.9]} 1... g6 {[%clk 0:03:00.1]} 2. d4 {[%clk 0:03:00.7]}
2... Bg7 {[%clk 0:03:00.4]} 3. Nc3 {[%clk 0:03:01.6]} 3... c5 {[%clk 0:03:00.9]}
4. dxc5 {[%clk 0:03:01.3]} 4... Bxc3+ {[%clk 0:03:00.6]} 5. bxc3 {[%clk
0:03:00.4]} 5... Qa5 {[%clk 0:03:01.1]} 6. Ne2 {[%clk 0:02:55.5]} 6... Nf6
{[%clk 0:02:55.1]} 7. f3 {[%clk 0:02:55.1]} 7... Qxc5 {[%clk 0:02:47.4]} 8. Qd3
{[%clk 0:02:54.9]} 8... O-O {[%clk 0:02:42.4]} 9. Be3 {[%clk 0:02:54.1]} 9...
Qc7 {[%clk 0:02:40.8]} 10. Nd4 {[%clk 0:02:51.4]} 10... a6 {[%clk 0:02:32.4]}
11. Be2 {[%clk 0:02:50.9]} 11... d6 {[%clk 0:02:32.8]} 12. O-O {[%clk
0:02:50.2]} 12... Nbd7 {[%clk 0:02:29.5]} 13. Nb3 {[%clk 0:02:48.3]} 13... b5
{[%clk 0:02:17.9]} 14. a4 {[%clk 0:02:47.3]} 14... Bb7 {[%clk 0:02:14.6]} 15.
axb5 {[%clk 0:02:45.8]} 15... axb5 {[%clk 0:02:14.8]} 16. Qxb5 {[%clk
0:02:45.6]} 16... Qxc3 {[%clk 0:01:48.7]} 17. Bh6 {[%clk 0:02:01.5]} 17... Rfb8
{[%clk 0:01:47.2]} 18. Qd3 {[%clk 0:02:00.6]} 18... Qxd3 {[%clk 0:01:40.7]} 19.
Bxd3 {[%clk 0:02:01.5]} 19... Ne5 {[%clk 0:01:27.4]} 20. Be2 {[%clk 0:01:59.8]}
20... Bc6 {[%clk 0:01:25.4]} 21. Nd4 {[%clk 0:01:59]} 21... Bd7 {[%clk
0:01:22.9]} 22. h3 {[%clk 0:01:59.3]} 22... Nc6 {[%clk 0:01:19.9]} 23. c3 {[%clk
0:01:50.3]} 23... Ne8 {[%clk 0:01:00.6]} 24. Rxa8 {[%clk 0:01:24.2]} 24... Rxa8
{[%clk 0:00:59.7]} 25. Rb1 {[%clk 0:01:24.8]} 25... Rb8 {[%clk 0:00:40.3]} 26.
Ra1 {[%clk 0:01:24.3]} 26... Nc7 {[%clk 0:00:35.8]} 27. Bf1 {[%clk 0:01:18.8]}
27... Ra8 {[%clk 0:00:29.3]} 28. Rb1 {[%clk 0:01:15]} 28... Rb8 {[%clk
0:00:25.6]} 29. Rd1 {[%clk 0:01:10.7]} 29... Rb2 {[%clk 0:00:21.5]} 30. Ra1
{[%clk 0:01:01.7]} 30... Rb8 {[%clk 0:00:20.5]} 31. Nxc6 {[%clk 0:00:38.1]}
31... Bxc6 {[%clk 0:00:20.3]} 32. c4 {[%clk 0:00:38.2]} 32... Ra8 {[%clk
0:00:19.4]} 33. Rb1 {[%clk 0:00:38]} 33... f6 {[%clk 0:00:15.6]} 34. c5 {[%clk
0:00:22.8]} 34... dxc5 {[%clk 0:00:16]} 35. Bc4+ {[%clk 0:00:12.7]} 35... e6
{[%clk 0:00:16.4]} 36. Rb6 {[%clk 0:00:12.5]} 36... Bd7 {[%clk 0:00:13.8]} 37.
Rb7 {[%clk 0:00:06.3]} 37... Rc8 {[%clk 0:00:14.1]} 38. Bf4 {[%clk 0:00:06.5]}
38... Bb5 {[%clk 0:00:07.3]} 39. Bxb5 {[%clk 0:00:06.4]} 39... e5 {[%clk
0:00:06.8]} 40. Be3 {[%clk 0:00:05.4]} 40... Nxb5 {[%clk 0:00:07.1]} 41. Rxb5
{[%clk 0:00:05.8]} 41... c4 {[%clk 0:00:07.7]} 42. Rc5 {[%clk 0:00:06.4]} 42...
Rd8 {[%clk 0:00:02.1]} 43. Rxc4 {[%clk 0:00:06.4]} 43... Kf7 {[%clk 0:00:02.8]}
44. Kh2 {[%clk 0:00:06.5]} 44... Ke6 {[%clk 0:00:02.9]} 45. Rc6+ {[%clk
0:00:06.6]} 45... Kd7 {[%clk 0:00:01.9]} 46. Rb6 {[%clk 0:00:07.5]} 46... Rc8
{[%clk 0:00:02.3]} 47. Rb7+ {[%clk 0:00:07.4]} 47... Ke6 {[%clk 0:00:03.2]} 48.
Rxh7 {[%clk 0:00:07.9]} 48... g5 {[%clk 0:00:03.8]} 49. Bg1 {[%clk 0:00:07.9]}
49... Rc2 {[%clk 0:00:04]} 50. h4 {[%clk 0:00:08.1]} 50... gxh4 {[%clk
0:00:04.1]} 51. Rxh4 {[%clk 0:00:08.3]} 51... Kf7 {[%clk 0:00:04.8]} 52. Rh7+
{[%clk 0:00:08.7]} 52... Kg6 {[%clk 0:00:05.7]} 53. Rh8 {[%clk 0:00:08]} 53...
Kg7 {[%clk 0:00:06]} 54. Ra8 {[%clk 0:00:08.4]} 54... Kg6 {[%clk 0:00:06.9]} 55.
Ra7 {[%clk 0:00:09.3]} 55... Kg5 {[%clk 0:00:07]} 56. Ra6 {[%clk 0:00:10.2]}
56... f5 {[%clk 0:00:06.8]} 57. Bf2 {[%clk 0:00:10.5]} 57... Rxf2 {[%clk
0:00:05.6]} 58. exf5 {[%clk 0:00:10.1]} 58... Kxf5 {[%clk 0:00:05.9]} 59. Kg3
{[%clk 0:00:10.4]} 59... Rc2 {[%clk 0:00:05.4]} 60. Ra5 {[%clk 0:00:11.3]} 60...
Rd2 {[%clk 0:00:05.3]} 61. Kh3 {[%clk 0:00:11.6]} 61... Rc2 {[%clk 0:00:05.6]}
62. Ra8 {[%clk 0:00:11.6]} 62... Rc3 {[%clk 0:00:05.7]} 63. Rf8+ {[%clk
0:00:12]} 63... Ke6 {[%clk 0:00:06.2]} 64. Kg4 {[%clk 0:00:12]} 64... Rc4+
{[%clk 0:00:06.1]} 65. Kg5 {[%clk 0:00:12.1]} 65... Rc2 {[%clk 0:00:06.2]} 66.
g4 {[%clk 0:00:12.5]} 66... Rc3 {[%clk 0:00:06.1]} 67. Kg6 {[%clk 0:00:12.2]}
67... Ke7 {[%clk 0:00:04.8]} 68. Rf5 {[%clk 0:00:11.4]} 68... Ke6 {[%clk
0:00:05.3]} 69. g5 {[%clk 0:00:11.6]} 69... Rc8 {[%clk 0:00:04]} 70. Rf6+ {[%clk
0:00:11.6]} 70... Kd5 {[%clk 0:00:03.9]} 71. Kg7 {[%clk 0:00:11.1]} 71... Rc1
{[%clk 0:00:02.9]} 72. g6 {[%clk 0:00:10.9]} 72... Rg1 {[%clk 0:00:03.5]} 73.
Kf7 {[%clk 0:00:11.2]} 73... e4 {[%clk 0:00:03.3]} 74. fxe4+ {[%clk 0:00:10.9]}
74... Kxe4 {[%clk 0:00:04.2]} 75. g7 {[%clk 0:00:11.8]} 75... Ke5 {[%clk
0:00:05.1]} 76. g8=Q {[%clk 0:00:12.1]} 76... Rxg8 {[%clk 0:00:04.7]} 77. Re6+
{[%clk 0:00:12.4]} 77... Kd5 {[%clk 0:00:04.9]} 78. Re1 {[%clk 0:00:09.8]} 78...
Rg2 {[%clk 0:00:05.1]} 79. Rd1+ {[%clk 0:00:10.7]} 79... Ke4 {[%clk 0:00:05.7]}
80. Rf1 {[%clk 0:00:10.8]} 80... Ke3 {[%clk 0:00:05.9]} 81. Rf6 {[%clk
0:00:11.2]} 81... Rf2 {[%clk 0:00:06.3]} 0-1

[Event "*** Titled Tuesday Blitz"]
[Site "Chess.com"]
[Date "2021.04.06"]
[Round "9"]
[White "Meri-Arabidze"]
[Black "anon481216"]
[Result "0-1"]
[WhiteElo "2622"]
[BlackElo "2522"]
[TimeControl "180+1"]
[EndTime "11:48:00 PDT"]
[Termination "anon481216 won on time"]

1. Nf3 {[%clk 0:03:00.9]} 1... c5 {[%clk 0:02:59.2]} 2. c4 {[%clk 0:03:01.1]}
2... Nc6 {[%clk 0:02:59.3]} 3. Nc3 {[%clk 0:03:02]} 3... e5 {[%clk 0:02:57.9]}
4. d3 {[%clk 0:03:01.8]} 4... g6 {[%clk 0:02:57.3]} 5. g3 {[%clk 0:03:02.3]}
5... Bg7 {[%clk 0:02:57.5]} 6. Bg2 {[%clk 0:03:03]} 6... Nge7 {[%clk 0:02:57.7]}
7. O-O {[%clk 0:03:03.9]} 7... d6 {[%clk 0:02:57.9]} 8. Bd2 {[%clk 0:03:04.8]}
8... O-O {[%clk 0:02:57.4]} 9. a3 {[%clk 0:03:05.3]} 9... a5 {[%clk 0:02:55.5]}
10. Ne1 {[%clk 0:03:00]} 10... Be6 {[%clk 0:02:54.5]} 11. Nc2 {[%clk 0:02:59.9]}
11... d5 {[%clk 0:02:54.6]} 12. cxd5 {[%clk 0:03:00.2]} 12... Nxd5 {[%clk
0:02:54.9]} 13. Ne3 {[%clk 0:03:00.9]} 13... Nde7 {[%clk 0:02:55.1]} 14. Nc4
{[%clk 0:02:53.8]} 14... Rb8 {[%clk 0:02:50.5]} 15. Nb5 {[%clk 0:02:49.8]} 15...
b6 {[%clk 0:02:45.5]} 16. Bc3 {[%clk 0:02:45.3]} 16... Qd7 {[%clk 0:02:31.5]}
17. a4 {[%clk 0:02:44.8]} 17... Bh3 {[%clk 0:02:20.9]} 18. b3 {[%clk 0:02:39.8]}
18... Bxg2 {[%clk 0:02:19.1]} 19. Kxg2 {[%clk 0:02:40.7]} 19... Nf5 {[%clk
0:02:15.1]} 20. Rc1 {[%clk 0:02:32.1]} 20... Nfd4 {[%clk 0:02:12.5]} 21. e3
{[%clk 0:02:28.5]} 21... Ne6 {[%clk 0:01:53]} 22. Qe2 {[%clk 0:02:24.4]} 22...
Ng5 {[%clk 0:01:48.8]} 23. f4 {[%clk 0:02:19.9]} 23... exf4 {[%clk 0:01:41.6]}
24. gxf4 {[%clk 0:02:19]} 24... Qh3+ {[%clk 0:01:39.8]} 25. Kg1 {[%clk
0:02:18.9]} 25... Ne6 {[%clk 0:01:34.5]} 26. Bxg7 {[%clk 0:02:18.3]} 26... Nxg7
{[%clk 0:01:30.9]} 27. Qf3 {[%clk 0:02:16.3]} 27... Qxf3 {[%clk 0:01:29.5]} 28.
Rxf3 {[%clk 0:02:17.2]} 28... Rfd8 {[%clk 0:01:29.9]} 29. Rd1 {[%clk 0:02:04.1]}
29... Nf5 {[%clk 0:01:29.3]} 30. Kf2 {[%clk 0:01:59.9]} 30... Kg7 {[%clk
0:01:28.8]} 31. Ke2 {[%clk 0:01:58.2]} 31... Re8 {[%clk 0:01:23.8]} 32. Kd2
{[%clk 0:01:57.4]} 32... Red8 {[%clk 0:01:22.1]} 33. Kc3 {[%clk 0:01:54]} 33...
Nb4 {[%clk 0:01:20.7]} 34. e4 {[%clk 0:01:43.4]} 34... Nd4 {[%clk 0:01:18]} 35.
Nxd4 {[%clk 0:01:43.6]} 35... Rxd4 {[%clk 0:01:17.4]} 36. f5 {[%clk 0:01:38.5]}
36... g5 {[%clk 0:01:12.7]} 37. Rg3 {[%clk 0:01:18.3]} 37... f6 {[%clk
0:01:11.5]} 38. e5 {[%clk 0:01:15.9]} 38... Nd5+ {[%clk 0:00:57.6]} 39. Kb2
{[%clk 0:01:13.3]} 39... Nf4 {[%clk 0:00:48.6]} 40. e6 {[%clk 0:01:06]} 40...
Kf8 {[%clk 0:00:36.7]} 41. Re3 {[%clk 0:01:00.2]} 41... Ke7 {[%clk 0:00:36.2]}
42. Kc2 {[%clk 0:00:52.9]} 42... Nd5 {[%clk 0:00:34]} 43. Rh3 {[%clk 0:00:51.4]}
43... Rh8 {[%clk 0:00:33.1]} 44. Rf1 {[%clk 0:00:45.8]} 44... h5 {[%clk
0:00:32.2]} 45. Rg3 {[%clk 0:00:39.3]} 45... h4 {[%clk 0:00:30.9]} 46. Rgf3
{[%clk 0:00:38.8]} 46... Nb4+ {[%clk 0:00:25.8]} 47. Kc3 {[%clk 0:00:36.7]}
47... Nd5+ {[%clk 0:00:22.8]} 48. Kb2 {[%clk 0:00:36.6]} 48... Rb8 {[%clk
0:00:23]} 49. h3 {[%clk 0:00:35.9]} 49... Nb4 {[%clk 0:00:19.4]} 50. Kc3 {[%clk
0:00:34.4]} 50... Nc6 {[%clk 0:00:19.7]} 51. Rg1 {[%clk 0:00:29.9]} 51... b5
{[%clk 0:00:19.5]} 52. axb5 {[%clk 0:00:28.1]} 52... Rxb5 {[%clk 0:00:19.6]} 53.
Rxg5 {[%clk 0:00:24.7]} 53... fxg5 {[%clk 0:00:18.5]} 54. f6+ {[%clk 0:00:24.9]}
54... Kxe6 {[%clk 0:00:18.4]} 55. f7 {[%clk 0:00:25.8]} 55... Rb8 {[%clk
0:00:18.3]} 56. f8=Q {[%clk 0:00:26]} 56... Rxf8 {[%clk 0:00:18.6]} 57. Rxf8
{[%clk 0:00:26.8]} 57... g4 {[%clk 0:00:18]} 58. hxg4 {[%clk 0:00:25.2]} 58...
Rxg4 {[%clk 0:00:17.4]} 59. Re8+ {[%clk 0:00:25.4]} 59... Kd7 {[%clk 0:00:16.9]}
60. Rh8 {[%clk 0:00:25.2]} 60... Kc7 {[%clk 0:00:15.4]} 61. Rh7+ {[%clk
0:00:24.6]} 61... Kb8 {[%clk 0:00:15.5]} 62. Nd6 {[%clk 0:00:22.9]} 62... Nb4
{[%clk 0:00:13.5]} 63. Ne4 {[%clk 0:00:20]} 63... Na6 {[%clk 0:00:09.6]} 64. Kc4
{[%clk 0:00:20]} 64... Rg1 {[%clk 0:00:07.6]} 65. Kb5 {[%clk 0:00:19.9]} 65...
Nc7+ {[%clk 0:00:07.6]} 66. Kc6 {[%clk 0:00:19.8]} 66... Ne6 {[%clk 0:00:06.5]}
67. Nd6 {[%clk 0:00:16.6]} 67... Rg8 {[%clk 0:00:05.5]} 68. Kb6 {[%clk
0:00:14.8]} 68... Nd4 {[%clk 0:00:04.9]} 69. Rb7+ {[%clk 0:00:14.2]} 69... Ka8
{[%clk 0:00:05.3]} 70. Ra7+ {[%clk 0:00:14.7]} 70... Kb8 {[%clk 0:00:04.9]} 71.
Rh7 {[%clk 0:00:12.4]} 71... Nxb3 {[%clk 0:00:03.7]} 72. Rb7+ {[%clk 0:00:07.1]}
72... Ka8 {[%clk 0:00:03.2]} 73. Ra7+ {[%clk 0:00:07.1]} 73... Kb8 {[%clk
0:00:03.6]} 74. Rb7+ {[%clk 0:00:05.6]} 74... Ka8 {[%clk 0:00:03.3]} 75. Rh7
{[%clk 0:00:06.2]} 75... a4 {[%clk 0:00:03.1]} 76. Nb5 {[%clk 0:00:06]} 76... a3
{[%clk 0:00:02.3]} 77. Rb7 {[%clk 0:00:04.9]} 77... Rg6+ {[%clk 0:00:02]} 78.
Kc7 {[%clk 0:00:02.3]} 78... Rg7+ {[%clk 0:00:02.4]} 79. Kc8 {[%clk 0:00:01.3]}
79... Rxb7 {[%clk 0:00:03.3]} 0-1

[Event "*** Titled Tuesday Blitz"]
[Site "Chess.com"]
[Date "2021.04.06"]
[Round "9"]
[White "tandaleo"]
[Black "MPGM"]
[Result "1/2-1/2"]
[WhiteElo "2411"]
[BlackElo "2556"]
[TimeControl "180+1"]
[EndTime "11:48:09 PDT"]
[Termination "Game drawn - insufficient material"]

1. Nf3 {[%clk 0:03:00.9]} 1... d5 {[%clk 0:02:58.5]} 2. g3 {[%clk 0:03:01.3]}
2... Bg4 {[%clk 0:02:57.4]} 3. Bg2 {[%clk 0:03:00.4]} 3... Nd7 {[%clk
0:02:57.5]} 4. c4 {[%clk 0:02:51.7]} 4... e6 {[%clk 0:02:55.3]} 5. cxd5 {[%clk
0:02:49.9]} 5... exd5 {[%clk 0:02:56.2]} 6. Qb3 {[%clk 0:02:47.6]} 6... Nb6
{[%clk 0:02:45.1]} 7. Nc3 {[%clk 0:02:35.6]} 7... Nf6 {[%clk 0:02:44.5]} 8. O-O
{[%clk 0:02:32.6]} 8... Bd6 {[%clk 0:02:39.1]} 9. a4 {[%clk 0:02:31]} 9... a5
{[%clk 0:02:35.9]} 10. Nb5 {[%clk 0:02:12]} 10... Be7 {[%clk 0:02:28.5]} 11. d3
{[%clk 0:02:10.9]} 11... O-O {[%clk 0:02:27.8]} 12. Bf4 {[%clk 0:02:10.7]} 12...
c6 {[%clk 0:02:00.7]} 13. Nc7 {[%clk 0:01:54.8]} 13... Bb4 {[%clk 0:01:31.9]}
14. Nxa8 {[%clk 0:01:50.8]} 14... Qxa8 {[%clk 0:01:32.4]} 15. h3 {[%clk
0:01:43.4]} 15... Bxf3 {[%clk 0:01:30.3]} 16. Bxf3 {[%clk 0:01:43.4]} 16... Re8
{[%clk 0:01:30.3]} 17. Qc2 {[%clk 0:01:34.7]} 17... Qc8 {[%clk 0:01:29.7]} 18.
Bd2 {[%clk 0:01:33.9]} 18... Qxh3 {[%clk 0:01:21.8]} 19. Bxb4 {[%clk 0:01:33.9]}
19... axb4 {[%clk 0:01:22.7]} 20. Qc5 {[%clk 0:01:32.9]} 20... Nbd7 {[%clk
0:01:21.6]} 21. Qxb4 {[%clk 0:01:28.4]} 21... Ne5 {[%clk 0:01:20.9]} 22. Bg2
{[%clk 0:01:27.6]} 22... Qh5 {[%clk 0:01:19.1]} 23. Qh4 {[%clk 0:01:16.1]} 23...
Qxh4 {[%clk 0:01:17.8]} 24. gxh4 {[%clk 0:01:15.8]} 24... Ng6 {[%clk 0:01:18.7]}
25. e3 {[%clk 0:00:45.4]} 25... Nxh4 {[%clk 0:01:18.5]} 26. d4 {[%clk
0:00:45.9]} 26... g5 {[%clk 0:01:03.4]} 27. b4 {[%clk 0:00:42.3]} 27... Nf5
{[%clk 0:00:56]} 28. b5 {[%clk 0:00:38.8]} 28... cxb5 {[%clk 0:00:56.9]} 29.
axb5 {[%clk 0:00:39]} 29... Nd6 {[%clk 0:00:57.6]} 30. Rab1 {[%clk 0:00:33.4]}
30... h5 {[%clk 0:00:54.9]} 31. Rfc1 {[%clk 0:00:32.7]} 31... Kg7 {[%clk
0:00:27.3]} 32. Rc5 {[%clk 0:00:31]} 32... Nde4 {[%clk 0:00:26.8]} 33. Bxe4
{[%clk 0:00:28.3]} 33... Nxe4 {[%clk 0:00:27.1]} 34. Rxd5 {[%clk 0:00:19.2]}
34... Nc3 {[%clk 0:00:27.1]} 35. Rxg5+ {[%clk 0:00:19.5]} 35... Kf6 {[%clk
0:00:25.3]} 36. Rb3 {[%clk 0:00:19.9]} 36... Ne2+ {[%clk 0:00:19.7]} 37. Kf1
{[%clk 0:00:20.2]} 37... Nxd4 {[%clk 0:00:20.1]} 38. Rb4 {[%clk 0:00:10.2]}
38... Nc2 {[%clk 0:00:18.1]} 39. Rc4 {[%clk 0:00:07.6]} 39... Nxe3+ {[%clk
0:00:17.1]} 40. fxe3 {[%clk 0:00:08.1]} 40... Kxg5 {[%clk 0:00:17.5]} 41. Rc7
{[%clk 0:00:08.2]} 41... f5 {[%clk 0:00:15.9]} 42. Rxb7 {[%clk 0:00:08.6]} 42...
Rxe3 {[%clk 0:00:15.8]} 43. b6 {[%clk 0:00:07.7]} 43... Rb3 {[%clk 0:00:16.4]}
44. Kf2 {[%clk 0:00:08.1]} 44... Kf4 {[%clk 0:00:16.2]} 45. Rh7 {[%clk
0:00:07.8]} 45... Rb2+ {[%clk 0:00:16.7]} 46. Kf1 {[%clk 0:00:08.1]} 46... Kg4
{[%clk 0:00:16.1]} 47. b7 {[%clk 0:00:07.7]} 47... f4 {[%clk 0:00:15.3]} 48. Kg1
{[%clk 0:00:06.3]} 48... h4 {[%clk 0:00:15.2]} 49. Rg7+ {[%clk 0:00:05.9]} 49...
Kf3 {[%clk 0:00:15.5]} 50. Kh1 {[%clk 0:00:04]} 50... h3 {[%clk 0:00:14.3]} 51.
Re7 {[%clk 0:00:04.2]} 51... Kg3 {[%clk 0:00:12.5]} 52. Rg7+ {[%clk 0:00:04.5]}
52... Kf3 {[%clk 0:00:12.9]} 53. Re7 {[%clk 0:00:04.8]} 53... h2 {[%clk
0:00:12.3]} 54. Rg7 {[%clk 0:00:03.5]} 54... Ke3 {[%clk 0:00:09.7]} 55. Re7+
{[%clk 0:00:03.5]} 55... Kf3 {[%clk 0:00:09.7]} 56. Rg7 {[%clk 0:00:03.6]} 56...
Ke4 {[%clk 0:00:09]} 57. Re7+ {[%clk 0:00:03.5]} 57... Kf5 {[%clk 0:00:09.5]}
58. Rf7+ {[%clk 0:00:03.6]} 58... Kg5 {[%clk 0:00:09.6]} 59. Rg7+ {[%clk
0:00:02.7]} 59... Kf6 {[%clk 0:00:09.8]} 60. Rg2 {[%clk 0:00:02.2]} 60... Rxb7
{[%clk 0:00:08.9]} 61. Kxh2 {[%clk 0:00:02.6]} 61... Kf5 {[%clk 0:00:08.6]} 62.
Ra2 {[%clk 0:00:02.8]} 62... Kg4 {[%clk 0:00:08]} 63. Kg2 {[%clk 0:00:02.9]}
63... Rb3 {[%clk 0:00:07.2]} 64. Kf2 {[%clk 0:00:03.4]} 64... Rh3 {[%clk
0:00:07]} 65. Ra8 {[%clk 0:00:03.2]} 65... Rh2+ {[%clk 0:00:07]} 66. Kg1 {[%clk
0:00:03.6]} 66... Rb2 {[%clk 0:00:07.9]} 67. Ra7 {[%clk 0:00:03.1]} 67... Kg3
{[%clk 0:00:05.9]} 68. Rg7+ {[%clk 0:00:02.3]} 68... Kf3 {[%clk 0:00:06.2]} 69.
Ra7 {[%clk 0:00:02.8]} 69... Rb1+ {[%clk 0:00:06.5]} 70. Kh2 {[%clk 0:00:03.2]}
70... Rf1 {[%clk 0:00:07.1]} 71. Ra3+ {[%clk 0:00:03.1]} 71... Kf2 {[%clk
0:00:03.5]} 72. Ra2+ {[%clk 0:00:03.3]} 72... Kf3 {[%clk 0:00:04.1]} 73. Ra3+
{[%clk 0:00:03.9]} 73... Kg4 {[%clk 0:00:04.8]} 74. Ra4 {[%clk 0:00:04]} 74...
Rb1 {[%clk 0:00:04.8]} 75. Kg2 {[%clk 0:00:03.9]} 75... Rb2+ {[%clk 0:00:05.3]}
76. Kf1 {[%clk 0:00:04]} 76... Kg3 {[%clk 0:00:06]} 77. Ra8 {[%clk 0:00:03.2]}
77... Kf3 {[%clk 0:00:06]} 78. Ra3+ {[%clk 0:00:02.8]} 78... Kg4 {[%clk
0:00:06]} 79. Ra8 {[%clk 0:00:02.5]} 79... Kg3 {[%clk 0:00:06]} 80. Rg8+ {[%clk
0:00:02]} 80... Kf3 {[%clk 0:00:06.5]} 81. Kg1 {[%clk 0:00:02.4]} 81... Rb1+
{[%clk 0:00:07.1]} 82. Kh2 {[%clk 0:00:02.9]} 82... Ke3 {[%clk 0:00:06.3]} 83.
Re8+ {[%clk 0:00:03]} 83... Kf2 {[%clk 0:00:06.5]} 84. Ra8 {[%clk 0:00:03]}
84... f3 {[%clk 0:00:06.1]} 85. Ra2+ {[%clk 0:00:03.1]} 85... Kf1 {[%clk
0:00:06]} 86. Kg3 {[%clk 0:00:03.8]} 86... Rb3 {[%clk 0:00:04.1]} 87. Rf2+
{[%clk 0:00:03.9]} 87... Kg1 {[%clk 0:00:03.9]} 88. Rxf3 {[%clk 0:00:04.8]}
88... Rxf3+ {[%clk 0:00:03.6]} 89. Kxf3 {[%clk 0:00:05.1]} 1/2-1/2